[Event "German Masters Frauen 2019"]
[Site "Magdeburg"]
[Date "2019.05.30"]
[Round "5.4"]
[White "Lubbe, Melanie"]
[Black "Sieber, Fiona"]
[Result "1-0"]
[ECO "B58"]
[WhiteElo "2278"]
[BlackElo "2250"]
[Annotator "ChessBase"]
[PlyCount "89"]
[EventDate "2019.05.26"]
[EventType "tourn"]
[EventCountry "GER"]
[SourceTitle "playchess.com"]
[Source "ChessBase"]
[SourceQuality "1"]
[TimeControl "40/5400+30:1800+30"]

1. e4 {[%emt 0:00:00]} c5 {[%emt 0:00:00]} 2. Nf3 {[%emt 0:00:00]} d6 {[%emt 0:00:00]} 3. d4 {[%emt 0:00:00]} cxd4 {[%emt 0:00:00]} 4. Nxd4 {[%emt 0:00:00]} Nf6 {[%emt 0:00:00]} 5. Nc3 {[%emt 0:00:00]} Nc6 {[%emt 0:00:00]} 6. Be2 {[%emt 0:00:18]} e5 {[%emt 0:00:00]} 7. Nf3 {[%emt 0:00:21]} h6 {[%emt 0:00:00]} 8. O-O {[%emt 0:00:08]} Be7 {[%emt 0:00:04]} 9. Re1 {[%emt 0:00:23]} O-O {[%emt 0:00:05]} 10. h3 {[%emt 0:00:15]} a6 {[%emt 0:00:14]} 11. Bf1 {[%emt 0:01:45]} Qc7 {[%emt 0:00:13]} 12. Nh2 {[%emt 0:01:29]} Bd8 {[%emt 0:04:28]} 13. Be3 {[%emt 0:07:19]} Be6 {[%emt 0:04:31]} 14. Nd5 {[%emt 0:16:39]} Bxd5 {[%emt 0:01:18]} 15. exd5 {[%emt 0:00:24]} Ne7 {[%emt 0:00:18]} 16. c4 {[%emt 0:00:43]} b5 {[%emt 0:11:14]} 17. Ng4 {[%emt 0:09:21]} Nxg4 {[%emt 0:03:12]} 18. hxg4 {[%emt 0:00:11]} f5 {[%emt 0:17:09]} 19. cxb5 {[%emt 0:04:22]} f4 {[%emt 0:07:33]} 20. Bd2 {[%emt 0:00:49]} axb5 {[%emt 0:09:10]} 21. Bxb5 {[%emt 0:03:41]} Qc5 {[%emt 0:06:47]} 22. a4 {[%emt 0:14:31]} Bb6 {[%emt 0:09:36]} 23. Qf3 {[%emt 0:02:31]} Ng6 {[%emt 0:04:47]} 24. Rf1 {[%emt 0:03:28]} Nh4 {[%emt 0:07:47]} 25. Qe4 {[%emt 0:02:26]} Qc8 {[%emt 0:00:01]} 26. Be2 {[%emt 0:04:15]} Rf6 {[%emt 0:03:39]} 27. Ra3 {[%emt 0:02:52]} Qd7 {[%emt 0:00:34]} 28. a5 {[%emt 0:02:49]} Bd4 {[%emt 0:00:57]} 29. b4 {[%emt 0:03:00]} Raf8 {[%emt 0:01:31]} 30. Rh3 {[%emt 0:04:43]} Ng6 {[%emt 0:02:19]} 31. b5 {[%emt 0:01:26]} Ne7 {[%emt 0:04:30]} 32. b6 {[%emt 0:01:35]} Qa4 {[%emt 0:01:17]} 33. Kh1 {[%emt 0:04:49]} Qa2 {[%emt 0:00:27]} 34. Rd3 {[%emt 0:01:10]} Nxd5 {[%emt 0:01:12]} 35. Rc1 {[%emt 0:02:23]} Nxb6 {[%emt 0:01:05]} 36. Rxd4 {[%emt 0:02:45]} exd4 {[%emt 0:00:22]} 37. Qxd4 {[%emt 0:01:10]} Re6 {[%emt 0:01:22]} 38. Bf3 {[%emt 0:01:16]} Qa4 {[%emt 0:00:41]} 39. Qxb6 {[%emt 0:01:00]} Kh8 {[%emt 0:00:01]} 40. a6 {[%emt 0:01:40]} Qa2 {[%emt 0:00:41]} 41. Bc3 {[%emt 0:05:31]} Ree8 {[%emt 0:15:27]} 42. a7 {[%emt 0:04:10]} Rg8 {[%emt 0:08:08]} 43. Qd4 {[%emt 0:02:29]} Qe6 {[%emt 0:03:05]} 44. Ra1 {[%emt 0:01:20]} d5 {[%emt 0:01:59]} 45. a8=Q {[%emt 0:02:02]} 1-0

[Event "German Masters Frauen 2019"]
[Site "Magdeburg"]
[Date "2019.05.31"]
[Round "6.1"]
[White "Osmanodja, Filiz"]
[Black "Sieber, Fiona"]
[Result "1-0"]
[ECO "B90"]
[WhiteElo "2260"]
[BlackElo "2250"]
[Annotator "ChessBase"]
[PlyCount "51"]
[EventDate "2019.05.26"]
[EventType "tourn"]
[EventCountry "GER"]
[SourceTitle "playchess.com"]
[Source "ChessBase"]
[SourceQuality "1"]
[TimeControl "40/5400+30:1800+30"]

1. e4 {[%emt 0:00:00]} c5 {[%emt 0:00:00]} 2. Nf3 {[%emt 0:00:00]} d6 {[%emt 0:00:00]} 3. d4 {[%emt 0:00:01]} cxd4 {[%emt 0:00:00]} 4. Nxd4 {[%emt 0:00:02]} Nf6 {[%emt 0:00:00]} 5. Nc3 {[%emt 0:00:03]} a6 {[%emt 0:00:00]} 6. h3 {[%emt 0:00:21]} e6 {[%emt 0:00:19]} 7. g4 {[%emt 0:01:50]} Be7 {[%emt 0:00:10]} 8. Be3 {[%emt 0:02:07]} b5 {[%emt 0:06:41]} 9. g5 {[%emt 0:09:55]} Nfd7 {[%emt 0:00:10]} 10. h4 {[%emt 0:00:21]} b4 {[%emt 0:05:25]} 11. Nce2 {[%emt 0:01:59]} Bb7 {[%emt 0:01:07]} 12. Bg2 {[%emt 0:01:16]} Nc5 {[%emt 0:05:17]} 13. Ng3 {[%emt 0:01:06]} Nbd7 {[%emt 0:02:44]} 14. f4 {[%emt 0:19:44]} Na4 {[%emt 0:20:13]} 15. f5 {[%emt 0:13:18]} Nxb2 {[%emt 0:11:29]} 16. Qc1 {[%emt 0:01:12]} e5 {[%emt 0:07:45]} 17. Qxb2 {[%emt 0:01:51]} exd4 {[%emt 0:00:05]} 18. Bxd4 {[%emt 0:00:29]} f6 {[%emt 0:01:23]} 19. Qb3 {[%emt 0:14:32]} Ne5 {[%emt 0:08:46]} 20. Nh5 {[%emt 0:03:45]} Bf8 {[%emt 0:00:46]} 21. gxf6 {[%emt 0:01:18]} gxf6 {[%emt 0:01:28]} 22. Qe6+ {[%emt 0:01:20]} Be7 {[%emt 0:03:20]} 23. Bxe5 {[%emt 0:07:22]} Bc8 {[%emt 0:08:26]} 24. Nxf6+ {[%emt 0:02:33]} Kf8 {[%emt 0:00:03]} 25. Nd7+ {[%emt 0:00:37]} Bxd7 {[%emt 0:01:23]} 26. Qh6+ {[%emt 0:00:03]} 1-0

[Event "German Masters Frauen 2019"]
[Site "Magdeburg"]
[Date "2019.05.31"]
[Round "6.2"]
[White "Hoolt, Sarah"]
[Black "Lubbe, Melanie"]
[Result "1-0"]
[ECO "A45"]
[WhiteElo "2321"]
[BlackElo "2278"]
[Annotator "ChessBase"]
[PlyCount "155"]
[EventDate "2019.05.26"]
[EventType "tourn"]
[EventCountry "GER"]
[SourceTitle "playchess.com"]
[Source "ChessBase"]
[SourceQuality "1"]
[TimeControl "40/5400+30:1800+30"]

1. d4 {[%emt 0:00:00]} Nf6 {[%emt 0:00:00]} 2. Bf4 {[%emt 0:00:00]} g6 {[%emt 0:00:12]} 3. Nc3 {[%emt 0:00:12]} Bg7 {[%emt 0:00:56]} 4. e4 {[%emt 0:00:18]} d6 {[%emt 0:00:11]} 5. Qd2 {[%emt 0:00:26]} a6 {[%emt 0:06:46]} 6. Bh6 {[%emt 0:03:10]} Bxh6 {[%emt 0:14:34]} 7. Qxh6 {[%emt 0:00:19]} e5 {[%emt 0:01:06]} 8. dxe5 {[%emt 0:03:13]} dxe5 {[%emt 0:00:07]} 9. Bc4 {[%emt 0:03:16]} Be6 {[%emt 0:20:56]} 10. Bxe6 {[%emt 0:09:46]} fxe6 {[%emt 0:00:04]} 11. Rd1 {[%emt 0:00:38]} Qe7 {[%emt 0:01:42]} 12. Nf3 {[%emt 0:06:26]} Nbd7 {[%emt 0:05:58]} 13. Qe3 {[%emt 0:12:06]} O-O-O {[%emt 0:05:20]} 14. Qa7 {[%emt 0:03:48]} Qc5 {[%emt 0:06:05]} 15. Qxc5 {[%emt 0:02:42]} Nxc5 {[%emt 0:00:02]} 16. Rxd8+ {[%emt 0:07:46]} Rxd8 {[%emt 0:00:38]} 17. Ng5 {[%emt 0:01:32]} Rd4 {[%emt 0:12:28]} 18. f3 {[%emt 0:02:16]} c6 {[%emt 0:03:36]} 19. Nf7 {[%emt 0:05:00]} Ncd7 {[%emt 0:00:19]} 20. Ne2 {[%emt 0:01:19]} Ra4 {[%emt 0:00:17]} 21. a3 {[%emt 0:00:19]} b5 {[%emt 0:02:27]} 22. Kd2 {[%emt 0:09:56]} c5 {[%emt 0:01:22]} 23. g4 {[%emt 0:07:29]} b4 {[%emt 0:01:48]} 24. axb4 {[%emt 0:03:23]} cxb4 {[%emt 0:02:25]} 25. h4 {[%emt 0:03:11]} h5 {[%emt 0:02:13]} 26. gxh5 {[%emt 0:02:08]} gxh5 {[%emt 0:00:02]} 27. Rg1 {[%emt 0:03:09]} Kc7 {[%emt 0:00:35]} 28. Rg5 {[%emt 0:00:30]} Ra1 {[%emt 0:02:26]} 29. Nc1 {[%emt 0:01:04]} Ra5 {[%emt 0:00:06]} 30. Nd3 {[%emt 0:00:53]} Ra1 {[%emt 0:01:07]} 31. Nxb4 {[%emt 0:00:59]} Rh1 {[%emt 0:00:59]} 32. Nxa6+ {[%emt 0:00:39]} Kb6 {[%emt 0:00:04]} 33. Nb4 {[%emt 0:00:09]} Rxh4 {[%emt 0:01:03]} 34. Nxe5 {[%emt 0:00:54]} Rh2+ {[%emt 0:01:20]} 35. Ke3 {[%emt 0:01:14]} h4 {[%emt 0:01:52]} 36. Nc4+ {[%emt 0:02:23]} Kc7 {[%emt 0:00:40]} 37. e5 {[%emt 0:01:18]} Nh7 {[%emt 0:02:45]} 38. Rh5 {[%emt 0:01:16]} Nhf8 {[%emt 0:00:09]} 39. Nd2 {[%emt 0:00:55]} Ng6 {[%emt 0:01:13]} 40. Nd3 {[%emt 0:00:36]} Ne7 {[%emt 0:01:58]} 41. Ne4 {[%emt 0:14:52]} Rxc2 {[%emt 0:05:40]} 42. Rh7 {[%emt 0:00:27]} Nf5+ {[%emt 0:04:55]} 43. Kf4 {[%emt 0:00:05]} Kd8 {[%emt 0:03:23]} 44. Nd6 {[%emt 0:04:34]} Ne7 {[%emt 0:10:49]} 45. b4 {[%emt 0:02:33]} Ng6+ {[%emt 0:02:03]} 46. Ke4 {[%emt 0:05:31]} Re2+ {[%emt 0:00:06]} 47. Kd4 {[%emt 0:00:03]} Ngxe5 {[%emt 0:00:45]} 48. Nxe5 {[%emt 0:00:01]} Nxe5 {[%emt 0:00:19]} 49. f4 {[%emt 0:03:12]} Ng6 {[%emt 0:02:17]} 50. Kc5 {[%emt 0:00:52]} Nxf4 {[%emt 0:01:11]} 51. Rxh4 {[%emt 0:00:16]} Rc2+ {[%emt 0:00:30]} 52. Nc4 {[%emt 0:00:47]} Nd3+ {[%emt 0:01:42]} 53. Kd6 {[%emt 0:00:18]} Kc8 {[%emt 0:00:52]} 54. b5 {[%emt 0:00:17]} Nb2 {[%emt 0:01:00]} 55. Na5 {[%emt 0:00:44]} Rd2+ {[%emt 0:00:16]} 56. Kc6 {[%emt 0:01:06]} Rc2+ {[%emt 0:00:05]} 57. Kb6 {[%emt 0:00:06]} e5 {[%emt 0:01:06]} 58. Ka6 {[%emt 0:02:20]} Nd3 {[%emt 0:01:01]} 59. Nc4 {[%emt 0:02:33]} Nc5+ {[%emt 0:01:55]} 60. Kb6 {[%emt 0:00:08]} Nd7+ {[%emt 0:00:13]} 61. Kc6 {[%emt 0:00:15]} Nb8+ {[%emt 0:00:05]} 62. Kd6 {[%emt 0:00:09]} Nd7 {[%emt 0:01:33]} 63. Kd5 {[%emt 0:00:58]} Kc7 {[%emt 0:00:41]} 64. Rh7 {[%emt 0:00:12]} Rc1 {[%emt 0:00:57]} 65. b6+ {[%emt 0:01:22]} Kd8 {[%emt 0:00:01]} 66. Rh8+ {[%emt 0:00:18]} Ke7 {[%emt 0:00:01]} 67. b7 {[%emt 0:00:32]} Rb1 {[%emt 0:00:55]} 68. Kc6 {[%emt 0:00:26]} Rc1 {[%emt 0:00:55]} 69. Rh7+ {[%emt 0:00:39]} Ke6 {[%emt 0:00:15]} 70. Rxd7 {[%emt 0:01:00]} Rxc4+ {[%emt 0:00:02]} 71. Kb5 {[%emt 0:00:05]} Rc1 {[%emt 0:00:36]} 72. Rd6+ {[%emt 0:00:34]} Kf5 {[%emt 0:00:47]} 73. Rb6 {[%emt 0:00:13]} Rb1+ {[%emt 0:00:10]} 74. Kc6 {[%emt 0:00:06]} Rc1+ {[%emt 0:00:08]} 75. Kd7 {[%emt 0:00:19]} Rd1+ {[%emt 0:00:34]} 76. Ke7 {[%emt 0:00:11]} Rh1 {[%emt 0:00:45]} 77. b8=Q {[%emt 0:00:12]} Rh7+ {[%emt 0:00:04]} 78. Kd6 {[%emt 0:00:06]} 1-0

[Event "German Masters Frauen 2019"]
[Site "Magdeburg"]
[Date "2019.05.31"]
[Round "6.3"]
[White "Muetsch, Annmarie"]
[Black "Klek, Hanna Marie"]
[Result "1-0"]
[ECO "B11"]
[WhiteElo "2266"]
[BlackElo "2325"]
[Annotator "ChessBase"]
[PlyCount "49"]
[EventDate "2019.05.26"]
[EventType "tourn"]
[EventCountry "GER"]
[SourceTitle "playchess.com"]
[Source "ChessBase"]
[SourceQuality "1"]
[TimeControl "40/5400+30:1800+30"]

1. e4 {[%emt 0:00:00]} c6 {[%emt 0:00:00]} 2. Nc3 {[%emt 0:00:00]} d5 {[%emt 0:00:00]} 3. Nf3 {[%emt 0:00:00]} Bg4 {[%emt 0:00:00]} 4. h3 {[%emt 0:00:00]} Bxf3 {[%emt 0:00:00]} 5. Qxf3 {[%emt 0:00:00]} Nf6 {[%emt 0:00:01]} 6. d3 {[%emt 0:00:56]} e6 {[%emt 0:00:05]} 7. Qg3 {[%emt 0:01:14]} d4 {[%emt 0:06:45]} 8. Nb1 {[%emt 0:00:30]} Nbd7 {[%emt 0:07:15]} 9. Be2 {[%emt 0:01:20]} e5 {[%emt 0:05:00]} 10. O-O {[%emt 0:02:39]} h5 {[%emt 0:08:43]} 11. f4 {[%emt 0:04:42]} Bd6 {[%emt 0:00:43]} 12. fxe5 {[%emt 0:10:37]} Bxe5 {[%emt 0:00:15]} 13. Bf4 {[%emt 0:00:09]} Bxf4 {[%emt 0:03:17]} 14. Qxf4 {[%emt 0:01:52]} Qe7 {[%emt 0:05:43]} 15. Nd2 {[%emt 0:02:10]} Ne5 {[%emt 0:04:10]} 16. Nf3 {[%emt 0:06:31]} Nxf3+ {[%emt 0:06:23]} 17. Bxf3 {[%emt 0:00:07]} O-O-O {[%emt 0:05:44]} 18. e5 {[%emt 0:03:18]} Ne8 {[%emt 0:04:42]} 19. Bxh5 {[%emt 0:02:22]} g5 {[%emt 0:02:18]} 20. Qxf7 {[%emt 0:03:49]} Qxe5 {[%emt 0:00:19]} 21. Rae1 {[%emt 0:01:26]} Qc5 {[%emt 0:00:37]} 22. Rf5 {[%emt 0:16:04]} Qxc2 {[%emt 0:01:00]} 23. Qe6+ {[%emt 0:02:41]} Kb8 {[%emt 0:00:05]} 24. Qe5+ {[%emt 0:00:45]} Nd6 {[%emt 0:00:08]} 25. Rf6 {[%emt 0:00:22]} 1-0

[Event "German Masters Frauen 2019"]
[Site "Magdeburg"]
[Date "2019.05.31"]
[Round "6.4"]
[White "Kachiani-Gersinska, Ketino"]
[Black "Heinemann, Josefine"]
[Result "1/2-1/2"]
[ECO "A34"]
[WhiteElo "2305"]
[BlackElo "2227"]
[Annotator "ChessBase"]
[PlyCount "81"]
[EventDate "2019.05.26"]
[EventType "tourn"]
[EventCountry "GER"]
[SourceTitle "playchess.com"]
[Source "ChessBase"]
[SourceQuality "1"]
[TimeControl "40/5400+30:1800+30"]

1. c4 {[%emt 0:00:02]} c5 {[%emt 0:00:00]} 2. Nf3 {[%emt 0:00:24]} Nf6 {[%emt 0:00:00]} 3. Nc3 {[%emt 0:01:31]} d5 {[%emt 0:00:00]} 4. cxd5 {[%emt 0:01:34]} Nxd5 {[%emt 0:00:00]} 5. e4 {[%emt 0:00:17]} Nb4 {[%emt 0:00:07]} 6. Bb5+ {[%emt 0:00:10]} Bd7 {[%emt 0:02:41]} 7. a3 {[%emt 0:00:13]} N4c6 {[%emt 0:02:35]} 8. d4 {[%emt 0:05:13]} cxd4 {[%emt 0:03:47]} 9. Nxd4 {[%emt 0:00:17]} Nxd4 {[%emt 0:11:19]} 10. Qxd4 {[%emt 0:01:11]} Bxb5 {[%emt 0:00:48]} 11. Qxd8+ {[%emt 0:01:24]} Kxd8 {[%emt 0:00:07]} 12. Nxb5 {[%emt 0:00:05]} a6 {[%emt 0:00:04]} 13. Nc3 {[%emt 0:02:19]} e6 {[%emt 0:00:49]} 14. Bg5+ {[%emt 0:23:10]} f6 {[%emt 0:02:02]} 15. Rd1+ {[%emt 0:12:06]} Ke8 {[%emt 0:00:11]} 16. Be3 {[%emt 0:00:49]} Nd7 {[%emt 0:01:56]} 17. Na4 {[%emt 0:02:14]} Rd8 {[%emt 0:06:02]} 18. Ke2 {[%emt 0:01:51]} Be7 {[%emt 0:03:47]} 19. Nb6 {[%emt 0:04:34]} Nxb6 {[%emt 0:02:16]} 20. Bxb6 {[%emt 0:00:22]} Rd6 {[%emt 0:02:30]} 21. Ba5 {[%emt 0:02:12]} Kf7 {[%emt 0:07:37]} 22. Rc1 {[%emt 0:06:04]} Bd8 {[%emt 0:06:19]} 23. Bb4 {[%emt 0:00:08]} Rd7 {[%emt 0:05:47]} 24. Rhd1 {[%emt 0:00:06]} Ke8 {[%emt 0:01:51]} 25. Bd6 {[%emt 0:11:48]} Be7 {[%emt 0:07:47]} 26. e5 {[%emt 0:04:38]} Kf7 {[%emt 0:02:44]} 27. Bxe7 {[%emt 0:00:39]} Kxe7 {[%emt 0:00:07]} 28. Rxd7+ {[%emt 0:00:05]} Kxd7 {[%emt 0:00:02]} 29. Rd1+ {[%emt 0:00:06]} Ke7 {[%emt 0:00:09]} 30. exf6+ {[%emt 0:00:36]} gxf6 {[%emt 0:00:05]} 31. Rc1 {[%emt 0:02:51]} Kd6 {[%emt 0:00:37]} 32. Rc4 {[%emt 0:00:50]} Rg8 {[%emt 0:00:27]} 33. g3 {[%emt 0:01:12]} Rg7 {[%emt 0:00:20]} 34. Rh4 {[%emt 0:00:37]} Rc7 {[%emt 0:00:34]} 35. Kd3 {[%emt 0:00:22]} f5 {[%emt 0:01:04]} 36. Rd4+ {[%emt 0:01:33]} Ke5 {[%emt 0:00:16]} 37. f4+ {[%emt 0:01:25]} Kf6 {[%emt 0:00:04]} 38. Rd6 {[%emt 0:00:46]} h5 {[%emt 0:00:08]} 39. Rb6 {[%emt 0:00:34]} Rh7 {[%emt 0:01:49]} 40. Ke3 {[%emt 0:00:41]} h4 {[%emt 0:01:27]} 41. Kf3 {[%emt 0:30:35] Ke5 Ke4+} 1/2-1/2

[Event "German Masters Frauen 2019"]
[Site "Magdeburg"]
[Date "2019.06.01"]
[Round "7.1"]
[White "Heinemann, Josefine"]
[Black "Osmanodja, Filiz"]
[Result "1/2-1/2"]
[ECO "B90"]
[WhiteElo "2227"]
[BlackElo "2260"]
[Annotator "ChessBase"]
[PlyCount "90"]
[EventDate "2019.05.26"]
[EventType "tourn"]
[EventCountry "GER"]
[SourceTitle "playchess.com"]
[Source "ChessBase"]
[SourceQuality "1"]
[TimeControl "40/5400+30:1800+30"]

1. e4 {[%emt 0:00:00]} c5 {[%emt 0:00:00]} 2. Nf3 {[%emt 0:00:00]} d6 {[%emt 0:00:00]} 3. d4 {[%emt 0:00:00]} Nf6 {[%emt 0:00:00]} 4. Nc3 {[%emt 0:00:00]} cxd4 {[%emt 0:00:00]} 5. Nxd4 {[%emt 0:00:00]} a6 {[%emt 0:00:00]} 6. f3 {[%emt 0:00:02]} e5 {[%emt 0:00:06]} 7. Nb3 {[%emt 0:00:04]} Be6 {[%emt 0:00:08]} 8. Be3 {[%emt 0:00:12]} Be7 {[%emt 0:00:19]} 9. Qd2 {[%emt 0:00:40]} O-O {[%emt 0:00:53]} 10. O-O-O {[%emt 0:00:13]} Nbd7 {[%emt 0:00:15]} 11. g4 {[%emt 0:00:33]} b5 {[%emt 0:00:08]} 12. g5 {[%emt 0:00:24]} b4 {[%emt 0:00:14]} 13. gxf6 {[%emt 0:03:10]} bxc3 {[%emt 0:00:07]} 14. Qxc3 {[%emt 0:00:04]} Nxf6 {[%emt 0:04:21]} 15. Na5 {[%emt 0:00:13]} Qd7 {[%emt 0:06:11]} 16. Nc6 {[%emt 0:00:07]} Rfc8 {[%emt 0:00:41]} 17. Nxe7+ {[%emt 0:00:06]} Qxe7 {[%emt 0:00:07]} 18. Qa5 {[%emt 0:03:55]} Rab8 {[%emt 0:20:55]} 19. Rg1 {[%emt 0:10:56]} Kh8 {[%emt 0:23:27]} 20. b3 {[%emt 0:11:08]} Ne8 {[%emt 0:07:32]} 21. Kb2 {[%emt 0:06:50]} f5 {[%emt 0:04:16]} 22. Bg5 {[%emt 0:05:08]} Qf7 {[%emt 0:08:31]} 23. Bh3 {[%emt 0:09:09]} fxe4 {[%emt 0:08:16]} 24. Bxe6 {[%emt 0:00:08]} Qxe6 {[%emt 0:00:02]} 25. fxe4 {[%emt 0:00:08]} Qc4 {[%emt 0:00:21]} 26. Qd2 {[%emt 0:01:45]} Qxe4 {[%emt 0:03:01]} 27. Rgf1 {[%emt 0:03:31]} Nc7 {[%emt 0:02:44]} 28. Qxd6 {[%emt 0:10:10]} Nb5 {[%emt 0:04:46]} 29. Qd3 {[%emt 0:01:20]} Qb4 {[%emt 0:01:37]} 30. Bd2 {[%emt 0:03:06]} Qa3+ {[%emt 0:00:33]} 31. Ka1 {[%emt 0:03:52]} Rd8 {[%emt 0:01:34]} 32. Qc4 {[%emt 0:06:22]} Rd4 {[%emt 0:01:26]} 33. Qc6 {[%emt 0:04:18]} Rd6 {[%emt 0:02:31]} 34. Qc4 {[%emt 0:02:26]} Rd4 {[%emt 0:00:03]} 35. Qc6 {[%emt 0:00:13]} Rd6 {[%emt 0:00:03]} 36. Qc4 {[%emt 0:00:05]} Nd4 {[%emt 0:02:15]} 37. Bc1 {[%emt 0:05:12]} Qa5 {[%emt 0:00:01]} 38. Kb1 {[%emt 0:00:47]} Rc6 {[%emt 0:00:51]} 39. Qf7 {[%emt 0:00:58]} Rg8 {[%emt 0:00:28]} 40. c4 {[%emt 0:06:26]} Qc3 {[%emt 0:00:32]} 41. Qf2 {[%emt 0:30:56]} Rf6 {[%emt 0:14:56]} 42. Qd2 {[%emt 0:00:00]} Qh3 {[%emt 0:02:19]} 43. Rxf6 {[%emt 0:00:00]} gxf6 {[%emt 0:03:28]} 44. Qf2 {[%emt 0:00:00]} Nf3 {[%emt 0:05:21]} 45. Bb2 {[%emt 0:00:00]} Qf5+ 1/2-1/2

[Event "German Masters Frauen 2019"]
[Site "Magdeburg"]
[Date "2019.06.01"]
[Round "7.2"]
[White "Klek, Hanna Marie"]
[Black "Kachiani-Gersinska, Ketino"]
[Result "1/2-1/2"]
[ECO "C44"]
[WhiteElo "2325"]
[BlackElo "2305"]
[Annotator "ChessBase"]
[PlyCount "40"]
[EventDate "2019.05.26"]
[EventType "tourn"]
[EventCountry "GER"]
[SourceTitle "playchess.com"]
[Source "ChessBase"]
[SourceQuality "1"]
[TimeControl "40/5400+30:1800+30"]

1. e4 {[%emt 0:00:00]} e5 {[%emt 0:00:34]} 2. Nf3 {[%emt 0:00:00]} Nc6 {[%emt 0:00:39]} 3. d4 {[%emt 0:00:00]} exd4 {[%emt 0:00:10]} 4. Nxd4 {[%emt 0:00:00]} Nf6 {[%emt 0:00:10]} 5. Nc3 {[%emt 0:00:00]} Bb4 {[%emt 0:00:13]} 6. Nxc6 {[%emt 0:00:00]} bxc6 {[%emt 0:01:25]} 7. Bd3 {[%emt 0:00:05]} d5 {[%emt 0:00:12]} 8. exd5 {[%emt 0:00:04]} cxd5 {[%emt 0:00:09]} 9. O-O {[%emt 0:00:07]} O-O {[%emt 0:00:13]} 10. h3 {[%emt 0:00:07]} c6 {[%emt 0:02:14]} 11. Qf3 {[%emt 0:00:35]} Bd6 {[%emt 0:01:05]} 12. Re1 {[%emt 0:04:48]} Rb8 {[%emt 0:02:38]} 13. Rb1 {[%emt 0:08:25]} Be6 {[%emt 0:04:30]} 14. Ne2 {[%emt 0:11:54]} c5 {[%emt 0:00:20]} 15. c3 {[%emt 0:06:03]} d4 {[%emt 0:15:34]} 16. c4 {[%emt 0:04:24]} Bc8 {[%emt 0:03:11]} 17. Bg5 {[%emt 0:02:51]} Bb7 {[%emt 0:00:07]} 18. Qf5 {[%emt 0:00:14]} Bc8 {[%emt 0:00:57]} 19. Qf3 {[%emt 0:00:28]} Bb7 {[%emt 0:00:47]} 20. Qf5 {[%emt 0:00:06]} Bc8 {[%emt 0:00:04]} 1/2-1/2

[Event "German Masters Frauen 2019"]
[Site "Magdeburg"]
[Date "2019.06.01"]
[Round "7.3"]
[White "Lubbe, Melanie"]
[Black "Muetsch, Annmarie"]
[Result "0-1"]
[ECO "B47"]
[WhiteElo "2278"]
[BlackElo "2266"]
[Annotator "ChessBase"]
[PlyCount "72"]
[EventDate "2019.05.26"]
[EventType "tourn"]
[EventCountry "GER"]
[SourceTitle "playchess.com"]
[Source "ChessBase"]
[SourceQuality "1"]
[TimeControl "40/5400+30:1800+30"]

1. e4 {[%emt 0:00:00]} c5 {[%emt 0:00:00]} 2. Nf3 {[%emt 0:00:00]} e6 {[%emt 0:00:00]} 3. d4 {[%emt 0:00:00]} cxd4 {[%emt 0:00:00]} 4. Nxd4 {[%emt 0:00:00]} Nc6 {[%emt 0:00:00]} 5. Nc3 {[%emt 0:00:06]} Qc7 {[%emt 0:00:05]} 6. f4 {[%emt 0:00:27]} a6 {[%emt 0:00:13]} 7. Nxc6 {[%emt 0:00:26]} Qxc6 {[%emt 0:00:05]} 8. Bd3 {[%emt 0:01:58]} b5 {[%emt 0:00:12]} 9. Qe2 {[%emt 0:01:33]} Bb7 {[%emt 0:00:48]} 10. Bd2 {[%emt 0:01:42]} Bc5 {[%emt 0:00:24]} 11. O-O-O {[%emt 0:03:36]} Ne7 {[%emt 0:00:11]} 12. a3 {[%emt 0:01:20]} O-O {[%emt 0:00:19]} 13. Qh5 {[%emt 0:05:22]} f6 {[%emt 0:00:33]} 14. g4 {[%emt 0:06:12]} Rf7 {[%emt 0:00:26]} 15. Rhe1 {[%emt 0:02:42]} b4 {[%emt 0:03:53]} 16. axb4 {[%emt 0:01:07]} Bxb4 {[%emt 0:00:05]} 17. Qh3 {[%emt 0:07:20]} Qb6 {[%emt 0:05:01]} 18. e5 {[%emt 0:12:58]} f5 {[%emt 0:01:23]} 19. gxf5 {[%emt 0:03:05]} Nxf5 {[%emt 0:00:51]} 20. Ne4 {[%emt 0:04:43]} Bxe4 {[%emt 0:03:18]} 21. Rxe4 {[%emt 0:04:42]} Bxd2+ {[%emt 0:00:28]} 22. Rxd2 {[%emt 0:00:19]} Qa5 {[%emt 0:08:58]} 23. c3 {[%emt 0:04:10]} Qa1+ {[%emt 0:05:58]} 24. Bb1 {[%emt 0:00:24]} a5 {[%emt 0:00:45]} 25. Qf3 {[%emt 0:08:59]} a4 {[%emt 0:07:04]} 26. Rb4 {[%emt 0:05:58]} Rff8 {[%emt 0:00:25]} 27. Rxd7 {[%emt 0:04:25]} a3 {[%emt 0:00:11]} 28. bxa3 {[%emt 0:00:17]} Rfc8 29. Kd2 {[%emt 0:00:30]} Rxa3 30. Bxf5 {[%emt 0:00:30]} Raxc3 31. Bxh7+ {[%emt 0:00:30]} Kh8 32. Qd1 {[%emt 0:00:30]} Qa2+ 33. Ke1 {[%emt 0:00:30]} Qxh2 34. Bb1 {[%emt 0:00:30]} Qg1+ 35. Ke2 {[%emt 0:00:30]} Qg2+ 36. Ke1 {[%emt 0:00:30]} Re3+ 0-1